bitfinex/quotes_BTCUSD_20250610
["timestamp","ask_amount","ask_price","bid_price","bid_amount"]
[1749566535213,0.8360066,108710.0,108700.0,0.10484978]
[1749566535425,0.8521066,108710.0,108700.0,0.09627536]
[1749566535632,0.8521066,108710.0,108700.0,0.01349658]
[1749566536039,0.9698666,108710.0,108700.0,0.01349658]
[1749566536450,0.9698666,108710.0,108700.0,0.01249679]
[1749566536857,0.9698666,108710.0,108700.0,0.00392196]
[1749566537108,0.9698666,108710.0,108700.0,0.00192196]
[1749566537319,0.9698666,108710.0,108700.0,0.01049698]
[1749566537534,0.9698666,108710.0,108700.0,0.00192196]
[1749566537535,1.40122,108710.0,108700.0,0.00192196]
[1749566537741,1.4925734,108710.0,108700.0,0.01049769]
[1749566537960,1.4925734,108710.0,108700.0,0.00192196]
[1749566538185,0.1931921,108700.0,108690.0,4e-05]
[1749566538395,1.07005248,108700.0,108690.0,4e-05]
[1749566538828,1.07936137,108700.0,108690.0,4e-05]
[1749566539669,0.53320986,108690.0,108680.0,0.00204]
[1749566539877,1.92343042,108690.0,108680.0,0.01060284]
[1749566540093,1.92343042,108690.0,108680.0,0.01060277]
[1749566540094,2.01478382,108690.0,108680.0,0.01060277]
[1749566540296,2.04250851,108690.0,108680.0,0.00204]
[1749566540873,2.04250851,108690.0,108670.0,4e-05]
[1749566540874,0.56482764,108680.0,108670.0,4e-05]
[1749566541052,2.0250082,108680.0,108670.0,0.00860338]
[1749566541254,2.0250082,108680.0,108670.0,0.00859584]
[1749566541502,2.1163616,108680.0,108670.0,0.00859584]
[1749566541700,2.1163616,108680.0,108670.0,4e-05]
[1749566542106,0.84909444,108680.0,108670.0,0.00859595]
[1749566542311,2.1163616,108680.0,108670.0,0.00859595]
[1749566542487,2.1163616,108680.0,108670.0,0.00859593]
[1749566542691,2.1183616,108680.0,108670.0,0.00859593]
[1749566543290,2.1183616,108680.0,108670.0,4e-05]
[1749566543499,2.1183616,108680.0,108670.0,0.00859594]
[1749566543701,2.1183616,108680.0,108670.0,0.00859595]
[1749566544171,2.1183616,108680.0,108670.0,4e-05]
[1749566544389,2.1203616,108680.0,108670.0,0.00859595]
[1749566544610,2.1203616,108680.0,108670.0,0.00859611]
[1749566545006,2.1203616,108680.0,108670.0,0.00859615]
[1749566545218,2.1203616,108680.0,108670.0,4e-05]
[1749566545437,2.1203616,108680.0,108670.0,0.00859632]
[1749566545660,0.20914543,108670.0,108660.0,0.00124]
[1749566545879,1.04128581,108670.0,108660.0,0.00124]
[1749566546315,1.04128581,108670.0,108660.0,0.00980378]
[1749566546534,1.04128581,108670.0,108660.0,0.00124]
[1749566546743,1.38128581,108670.0,108660.0,0.009804]
[1749566546952,1.38128581,108670.0,108660.0,0.00980409]
[1749566547162,1.38228581,108670.0,108660.0,0.00124]
[1749566547367,1.38228581,108670.0,108660.0,0.0098043]
[1749566547818,1.51280581,108670.0,108660.0,0.00980397]
[1749566548278,1.51280581,108670.0,108660.0,0.00980386]
[1749566548506,1.51280581,108670.0,108660.0,0.00124]
[1749566548726,1.51380581,108670.0,108660.0,0.00980388]
[1749566549176,0.88017223,108670.0,108660.0,0.00980388]
[1749566549400,1.51380581,108670.0,108660.0,0.00980388]
[1749566549645,1.27603241,108670.0,108660.0,0.00980388]
[1749566549870,1.40655241,108670.0,108660.0,0.00980388]
[1749566550096,1.05075241,108670.0,108660.0,0.00980388]
[1749566550348,0.41711883,108670.0,108660.0,0.00979034]
[1749566550583,1.39075241,108670.0,108660.0,0.00124]
[1749566550807,1.39075241,108670.0,108660.0,0.00979032]
[1749566551699,1.39075241,108670.0,108660.0,0.00978396]
[1749566552209,1.39075241,108670.0,108660.0,0.00978384]
[1749566552438,1.39075241,108670.0,108660.0,0.02687145]
[1749566552671,1.39075241,108670.0,108660.0,0.0268714]
[1749566552890,1.39075241,108670.0,108660.0,0.02687138]
[1749566553336,0.19524543,108670.0,108660.0,0.00978379]
[1749566553611,0.19524543,108670.0,108660.0,0.14892161]
[1749566553832,0.19524543,108670.0,108660.0,0.14891956]
[1749566554079,0.19524543,108670.0,108660.0,0.14037742]
[1749566554302,0.19524543,108670.0,108660.0,0.14637582]
[1749566554523,0.19424543,108670.0,108660.0,0.16345822]
[1749566555014,0.19324543,108670.0,108660.0,0.16345967]
[1749566555252,0.19324543,108670.0,108660.0,0.16347452]
[1749566555253,0.18404343,108670.0,108660.0,0.16347452]
[1749566555467,0.18404343,108670.0,108660.0,0.13783425]
[1749566555468,0.15424543,108670.0,108660.0,0.13783425]
[1749566555690,0.15424543,108670.0,108660.0,0.26680288]
[1749566555903,0.15424543,108670.0,108660.0,0.28389891]
[1749566556147,0.15424543,108670.0,108660.0,0.26680288]
[1749566556350,0.15424543,108670.0,108660.0,0.29244685]
[1749566556565,0.15424543,108670.0,108660.0,0.48389886]
[1749566556778,0.15424543,108670.0,108660.0,0.49244683]
[1749566557008,0.15424543,108670.0,108660.0,0.39288683]
[1749566557221,0.15424543,108670.0,108660.0,0.14238937]
[1749566557450,0.15424543,108670.0,108660.0,0.15094066]
[1749566557658,0.78787901,108670.0,108660.0,0.12669748]
[1749566557938,0.78787901,108670.0,108660.0,0.1095934]
[1749566558193,0.15424543,108670.0,108660.0,0.04389723]
[1749566558453,0.15424543,108670.0,108660.0,0.02889723]
[1749566558725,0.15424543,108670.0,108660.0,0.04549723]
[1749566558912,0.15424543,108670.0,108660.0,0.03795587]
[1749566559132,0.15424543,108670.0,108660.0,0.02084]
[1749566559342,0.15424543,108670.0,108660.0,0.03795586]
[1749566559568,0.15424543,108670.0,108660.0,0.02939793]
[1749566559768,0.78787901,108670.0,108660.0,0.04651379]
[1749566560029,0.78787901,108670.0,108660.0,0.02084]
[1749566560253,0.78787901,108670.0,108660.0,0.04651379]
[1749566560683,0.78787901,108670.0,108660.0,0.04651378]
[1749566561321,0.78787901,108670.0,108660.0,0.04653206]
[1749566561766,0.15424543,108670.0,108660.0,0.04653206]
[1749566561970,0.78787901,108670.0,108660.0,0.13788546]
[1749566562180,0.15424543,108670.0,108660.0,0.13788546]
[1749566562389,0.15424543,108670.0,108660.0,0.12932753]
[1749566562612,0.74887901,108670.0,108660.0,0.13790724]
[1749566562818,0.74887901,108670.0,108660.0,0.12933556]
[1749566563027,0.74887901,108670.0,108660.0,0.12076453]
[1749566563233,0.74887901,108670.0,108660.0,0.12130677]
[1749566563486,0.74887901,108670.0,108660.0,0.13670674]
[1749566563706,0.74887901,108670.0,108660.0,0.11956447]
[1749566563965,0.74887901,108670.0,108660.0,0.13670661]
[1749566564184,0.74887901,108670.0,108660.0,0.13670683]
[1749566564392,0.74887901,108670.0,108660.0,0.13672448]
[1749566564602,0.74887901,108670.0,108660.0,0.12817111]
[1749566564811,0.11524543,108670.0,108660.0,0.11958225]
[1749566565022,0.11524543,108670.0,108660.0,0.13675995]
[1749566565952,0.11524543,108670.0,108660.0,0.13676341]
[1749566566196,0.11524543,108670.0,108660.0,0.1436734]
[1749566566636,0.11524543,108670.0,108660.0,0.1856721]
[1749566566845,0.11524543,108670.0,108660.0,0.19426189]
[1749566567066,0.12444734,108670.0,108660.0,0.2308717]
[1749566567316,0.11524543,108670.0,108660.0,0.56168444]
[1749566567539,0.10627625,108670.0,108660.0,0.56168137]
[1749566567817,0.10627625,108670.0,108660.0,0.56168138]
[1749566568000,0.10627625,108670.0,108660.0,0.69978915]
[1749566568679,0.10627625,108670.0,108660.0,0.58972089]
[1749566568883,0.10627625,108670.0,108660.0,0.69979008]
[1749566569097,0.10627625,108670.0,108660.0,0.89979008]
[1749566569309,0.10627625,108670.0,108660.0,0.79830479]
[1749566569525,0.73990983,108670.0,108660.0,0.15798286]
[1749566569735,0.70090983,108670.0,108660.0,0.10418259]
[1749566569951,0.70090983,108670.0,108660.0,0.11276494]
[1749566570165,0.70090983,108670.0,108660.0,0.0955934]
[1749566570384,0.70090983,108670.0,108660.0,0.02141156]
[1749566570385,0.80238983,108670.0,108660.0,0.02141156]
[1749566570604,0.80238983,108670.0,108660.0,0.02999833]
[1749566571049,0.81808983,108670.0,108660.0,0.02999833]
[1749566571270,0.81808983,108670.0,108660.0,0.02999718]
[1749566571271,1.15808983,108670.0,108660.0,0.02999718]
[1749566571485,1.17318983,108670.0,108660.0,0.03000092]
[1749566571723,1.17318983,108670.0,108660.0,0.01282787]
[1749566571943,1.17318983,108670.0,108660.0,0.00424]
[1749566572164,0.63090965,108670.0,108660.0,0.00982775]
[1749566572378,1.26454323,108670.0,108660.0,0.00124]
[1749566572590,1.26454323,108670.0,108660.0,0.00982774]
[1749566573303,1.26454323,108670.0,108660.0,0.00124]
[1749566573512,1.26454323,108670.0,108660.0,0.0098278]
[1749566575026,1.07170983,108670.0,108660.0,0.0098278]
[1749566575238,1.20206983,108670.0,108660.0,0.00124]
[1749566575450,1.20206983,108670.0,108660.0,0.00982811]
[1749566575658,1.20206983,108670.0,108660.0,0.00124]
[1749566576083,1.20206983,108670.0,108660.0,0.0098281]
[1749566577181,1.29342323,108670.0,108660.0,0.0098281]
[1749566577612,1.29342323,108670.0,108660.0,0.00124]
[1749566577824,1.29342323,108670.0,108660.0,0.00982809]
[1749566578045,1.29342323,108670.0,108660.0,0.0098281]
[1749566578274,1.29342323,108670.0,108660.0,0.00982812]
[1749566578744,1.29342323,108670.0,108660.0,0.02700438]
[1749566578967,1.29342323,108670.0,108660.0,0.01841626]
[1749566579181,1.29342323,108670.0,108660.0,0.01841625]
[1749566579444,1.29342323,108670.0,108660.0,0.02701611]
[1749566579662,1.29342323,108670.0,108660.0,0.02701613]
[1749566579896,1.20206983,108670.0,108660.0,0.03561013]
[1749566580109,1.20206983,108670.0,108660.0,0.01842213]
[1749566580322,1.20206983,108670.0,108660.0,0.01842115]
[1749566580552,1.29342323,108670.0,108660.0,0.00982813]
[1749566580789,0.193281,108650.0,108640.0,0.00204]
[1749566581052,0.82691458,108650.0,108640.0,0.01922817]
[1749566581260,0.95727458,108650.0,108640.0,0.00204]
[1749566581474,0.95727458,108650.0,108640.0,0.01922906]
[1749566581899,1.04862798,108650.0,108640.0,0.01922906]
[1749566582113,1.04862798,108650.0,108640.0,0.00204]
[1749566582324,1.04862798,108650.0,108640.0,0.01922905]
[1749566582534,1.04862798,108650.0,108640.0,0.01922906]
[1749566582752,1.38862798,108650.0,108640.0,0.01922905]
[1749566582960,1.38862798,108650.0,108640.0,0.01922906]
[1749566583245,1.40442798,108650.0,108640.0,0.01922933]
[1749566583906,1.42052798,108650.0,108640.0,0.01922933]
[1749566584128,1.42052798,108650.0,108640.0,0.00204]
[1749566584350,1.42987472,108650.0,108640.0,0.01921218]
[1749566584777,1.42987472,108650.0,108640.0,0.00204]
[1749566585007,2.1548617,108650.0,108640.0,0.00204]
[1749566585220,2.1558617,108650.0,108640.0,0.00204]
[1749566585644,1.52322812,108650.0,108640.0,0.00204]
[1749566586298,0.8104389,108650.0,108640.0,0.00204]
[1749566586527,1.29791248,108650.0,108640.0,0.00204]
[1749566586745,1.42827248,108650.0,108640.0,0.00204]
[1749566587728,1.42823248,108650.0,108640.0,0.00204]
[1749566588661,0.6642789,108650.0,108640.0,0.00204]
[1749566588875,0.20462774,108650.0,108640.0,0.00204]
[1749566589096,0.224121,108650.0,108640.0,0.03559726]
[1749566589313,0.95923458,108650.0,108640.0,0.03444]
[1749566589538,0.93039458,108650.0,108640.0,0.03444]
[1749566589760,0.93039458,108650.0,108640.0,0.05159519]
[1749566589976,0.93039458,108650.0,108640.0,0.03444]
[1749566590185,0.93039458,108650.0,108640.0,0.03559511]
[1749566590408,0.93039458,108650.0,108640.0,0.01919511]
[1749566590865,0.93039458,108650.0,108640.0,0.03549511]
[1749566591084,0.93039458,108650.0,108640.0,0.01834]
[1749566591751,0.93039458,108650.0,108640.0,0.00204]
[1749566592638,0.93039458,108650.0,108640.0,0.01061956]
[1749566592848,0.93039458,108650.0,108640.0,0.01061957]
[1749566593035,0.93039458,108650.0,108640.0,0.00204]
[1749566593252,0.93039458,108650.0,108640.0,0.01061957]
[1749566593688,0.93039458,108650.0,108640.0,0.02581957]
[1749566593908,0.296761,108650.0,108640.0,0.02581947]
[1749566594135,0.95919458,108650.0,108640.0,0.04101947]
[1749566594998,1.05054798,108650.0,108640.0,0.01061947]
[1749566595636,1.05054798,108650.0,108640.0,0.01061975]
[1749566595873,1.05054798,108650.0,108640.0,0.01062177]
[1749566596086,1.05054798,108650.0,108640.0,0.01062168]
[1749566596317,1.05054798,108650.0,108640.0,0.01062167]
[1749566596944,1.05054798,108650.0,108640.0,0.01062355]
[1749566597408,1.05054798,108650.0,108640.0,0.01062354]
[1749566597680,1.05054798,108650.0,108640.0,0.00204]
[1749566597913,1.05054798,108650.0,108640.0,0.01062355]
[1749566598507,1.68418156,108650.0,108640.0,0.01062356]
[1749566598691,2.05688156,108650.0,108640.0,0.01062356]
[1749566598937,2.05688156,108650.0,108640.0,0.00204]
[1749566599608,2.05688156,108650.0,108640.0,0.01064325]
[1749566600096,2.05688156,108650.0,108640.0,0.01068325]
[1749566600555,2.05688156,108650.0,108640.0,0.0106823]
[1749566601025,2.05688156,108650.0,108640.0,0.00208]
[1749566601273,2.05688156,108650.0,108640.0,0.01068232]
[1749566601274,2.14823496,108650.0,108640.0,0.01068232]
[1749566601495,0.34920539,108630.0,108620.0,0.00204]
[1749566601718,1.44417353,108630.0,108620.0,0.00204]
[1749566601960,0.82696796,108620.0,108610.0,0.02034]
[1749566602187,0.97314796,108620.0,108610.0,0.02034]
[1749566602421,0.95724796,108620.0,108610.0,0.02034]
[1749566602635,0.95724796,108620.0,108610.0,0.01034]
[1749566602852,0.94583806,108620.0,108610.0,0.01034]
[1749566603081,0.53335218,108610.0,108600.0,0.00834]
[1749566603299,1.26842576,108610.0,108600.0,0.00834]
[1749566603523,1.28382576,108610.0,108600.0,0.00834]
[1749566603761,2.02531274,108610.0,108600.0,0.00834]
[1749566604200,2.11666614,108610.0,108600.0,0.00834]
[1749566604651,2.11766614,108610.0,108600.0,0.00834]
[1749566605090,2.11666614,108610.0,108600.0,0.00834]
[1749566605580,1.92587274,108610.0,108600.0,0.00834]
[1749566605808,1.40601916,108610.0,108600.0,0.00834]
[1749566606032,1.40701916,108610.0,108600.0,0.00834]
[1749566606759,1.26133916,108610.0,108600.0,0.00834]
[1749566606972,1.39165916,108610.0,108600.0,0.00838]
[1749566607840,1.39161916,108610.0,108600.0,0.00838]
[1749566608736,1.26133916,108610.0,108600.0,0.00838]
[1749566608949,1.26133916,108610.0,108600.0,0.02498]
[1749566609162,1.39161916,108610.0,108600.0,0.02498]
[1749566609600,1.39161916,108610.0,108600.0,0.04214358]
[1749566609825,1.39165916,108610.0,108600.0,0.04214355]
[1749566610794,1.39165916,108610.0,108600.0,0.04214258]
[1749566611032,1.39165916,108610.0,108600.0,0.02498]
[1749566611496,1.39165916,108610.0,108600.0,0.02554269]
[1749566611970,1.39165916,108610.0,108600.0,0.02554271]
[1749566612417,1.39165916,108610.0,108600.0,0.02554274]
[1749566612637,1.39165916,108610.0,108600.0,0.00838]
[1749566612867,1.39165916,108610.0,108600.0,0.02554274]
[1749566613100,1.42335916,108610.0,108600.0,0.00838]
[1749566613328,0.5309832,108600.0,108590.0,0.00013065]
[1749566613551,1.88960376,108600.0,108590.0,0.00871124]
[1749566614019,1.88960376,108600.0,108590.0,0.0087059]
[1749566614244,1.88960376,108600.0,108590.0,0.00870572]
[1749566614466,1.88960376,108600.0,108590.0,0.00870581]
[1749566614467,1.25597018,108600.0,108590.0,0.00870581]
[1749566614693,1.89060376,108600.0,108590.0,0.00870581]
[1749566615129,1.89962496,108600.0,108590.0,0.00870581]
[1749566615789,1.89962496,108600.0,108590.0,0.00013065]
[1749566616009,1.89962496,108600.0,108590.0,0.00870365]
[1749566616224,1.89962496,108600.0,108590.0,0.00013065]
[1749566616637,1.89962496,108600.0,108590.0,0.00870346]
[1749566617471,1.99097836,108600.0,108590.0,0.00870346]
[1749566617753,2.02357836,108600.0,108590.0,0.00870381]
[1749566617991,2.02357836,108600.0,108590.0,0.00870387]
[1749566618206,2.02357836,108600.0,108590.0,0.00870384]
[1749566618428,2.02357836,108600.0,108590.0,0.00013065]
[1749566618888,2.02357836,108600.0,108590.0,0.00870203]
[1749566619568,2.00727836,108600.0,108590.0,0.00013065]
[1749566619994,2.02347836,108600.0,108590.0,0.00013065]
[1749566620209,2.02347836,108600.0,108590.0,0.0087021]
[1749566621033,2.02347836,108600.0,108590.0,0.00870026]
[1749566621230,2.02347836,108600.0,108590.0,0.00013065]
[1749566621862,2.02347836,108600.0,108590.0,0.00870028]
[1749566622499,2.02347836,108600.0,108590.0,0.00870596]
[1749566622708,2.02347836,108600.0,108590.0,0.00013065]
[1749566623673,1.98997836,108600.0,108590.0,0.00013065]
[1749566623932,2.0228021,108600.0,108590.0,0.00013065]
[1749566624176,2.0068021,108600.0,108590.0,0.00013065]
[1749566624395,0.2255878,108590.0,108580.0,0.1106914]
[1749566624621,1.02592818,108590.0,108580.0,0.1106914]
[1749566624834,1.00972818,108590.0,108580.0,0.1106914]
[1749566625298,1.00972818,108590.0,108580.0,0.11926753]
[1749566625514,0.3760946,108590.0,108580.0,0.11926753]
[1749566625728,0.91837478,108590.0,108580.0,0.13456753]
[1749566625966,0.91837478,108590.0,108580.0,0.1259914]
[1749566625967,0.6247412,108590.0,108580.0,0.1259914]
[1749566626149,0.6247412,108590.0,108580.0,0.13456272]
[1749566626355,1.25837478,108590.0,108580.0,0.1259914]
[1749566626561,1.25837478,108590.0,108580.0,0.13456891]
[1749566626769,1.25937478,108590.0,108580.0,0.13456892]
[1749566626999,1.25937478,108590.0,108580.0,0.1259914]
[1749566627195,1.25937478,108590.0,108580.0,0.13456892]
[1749566627400,1.25937478,108590.0,108580.0,0.16672389]
[1749566627612,1.25937478,108590.0,108580.0,0.1517236]
[1749566627819,1.25937478,108590.0,108580.0,0.15172373]
[1749566628024,1.25937478,108590.0,108580.0,0.15172346]
[1749566628448,1.25937478,108590.0,108580.0,0.13456875]
[1749566628684,1.25937478,108590.0,108580.0,0.15175274]
[1749566628888,1.25937478,108590.0,108580.0,0.13457852]
[1749566629138,1.25937478,108590.0,108580.0,0.15175274]
[1749566629364,1.25937478,108590.0,108580.0,0.15175271]
[1749566630448,1.25937478,108590.0,108580.0,0.16765271]
[1749566630907,1.25937478,108590.0,108580.0,0.1504785]
[1749566631105,1.25937478,108590.0,108580.0,0.15910308]
[1749566631317,1.25937478,108590.0,108580.0,0.15049721]
[1749566631529,1.25937478,108590.0,108580.0,0.15049722]
[1749566631733,1.25937478,108590.0,108580.0,0.16770938]
[1749566631953,1.25937478,108590.0,108580.0,0.16770885]
[1749566632165,0.5343878,108590.0,108580.0,0.16770873]
[1749566632405,0.1943878,108590.0,108580.0,0.15049711]
[1749566632648,0.1943878,108590.0,108580.0,0.16771875]
[1749566632886,0.1943878,108590.0,108580.0,0.15910933]
[1749566633151,0.1933878,108590.0,108580.0,0.1505005]
[1749566633365,0.1933878,108590.0,108580.0,0.19518333]
[1749566633577,0.1933878,108590.0,108580.0,0.19518311]
[1749566634010,0.1933878,108590.0,108580.0,0.19518295]
[1749566634231,0.1933878,108590.0,108580.0,0.16935603]
[1749566634455,0.1933878,108590.0,108580.0,0.1865739]
[1749566634912,0.1933878,108590.0,108580.0,0.19518239]
[1749566635137,0.82702138,108590.0,108580.0,0.19518237]
[1749566635590,0.82702138,108590.0,108580.0,0.18657463]
[1749566635815,0.82702138,108590.0,108580.0,0.19518381]
[1749566636043,0.82702138,108590.0,108580.0,0.17796524]
[1749566636269,0.82702138,108590.0,108580.0,0.19518364]
[1749566636527,0.82702138,108590.0,108580.0,0.17796523]
[1749566636741,0.82702138,108590.0,108580.0,0.19518364]
[1749566637000,0.82702138,108590.0,108580.0,0.20442459]
[1749566637234,0.82702138,108590.0,108580.0,0.19518364]
[1749566637652,0.82702138,108590.0,108580.0,0.19518356]
[1749566637863,0.82702138,108590.0,108580.0,0.17796391]
[1749566638081,0.1933878,108590.0,108580.0,0.2693173]
[1749566638292,0.1933878,108590.0,108580.0,0.27792518]
[1749566638503,0.1933878,108590.0,108580.0,0.31455202]
[1749566638724,0.1933878,108590.0,108580.0,0.29733659]
[1749566638936,0.1933878,108590.0,108580.0,0.35057614]
[1749566639342,0.89296434,108590.0,108580.0,0.35057136]
[1749566639594,0.89296434,108590.0,108580.0,0.32475304]
[1749566639808,0.1933878,108590.0,108580.0,0.33335641]
[1749566640009,0.1933878,108590.0,108580.0,0.35056318]
[1749566640224,0.89296434,108590.0,108580.0,0.32475304]
[1749566640439,0.89296434,108590.0,108580.0,0.34035978]
[1749566640721,0.89296434,108590.0,108580.0,0.35813246]
[1749566640949,0.20259649,108590.0,108580.0,1.6770217]
[1749566641169,0.20259649,108590.0,108580.0,1.69533377]
[1749566641433,0.19336999,108600.0,108590.0,0.38594085]
[1749566641660,0.19336999,108600.0,108590.0,1.26752616]
[1749566641661,0.01841526,108600.0,108590.0,1.26752616]
[1749566641879,0.03683044,108600.0,108590.0,1.25032348]
[1749566642105,0.2117855,108600.0,108590.0,1.26752535]
[1749566642318,0.20257783,108600.0,108590.0,1.26752533]
[1749566642510,0.19337007,108600.0,108590.0,1.26752533]
[1749566642763,0.19337007,108600.0,108590.0,0.56794879]
[1749566642990,0.19337007,108600.0,108590.0,1.26748729]
[1749566643235,0.19337007,108600.0,108590.0,0.47729425]
[1749566643455,0.19337007,108600.0,108590.0,0.54945383]
[1749566643672,0.19337007,108600.0,108590.0,0.53228961]
[1749566643879,0.19337007,108600.0,108590.0,0.78609712]
[1749566644092,0.19337007,108600.0,108590.0,0.19110201]
[1749566644310,0.19337007,108600.0,108590.0,0.15845261]
[1749566644791,0.19337007,108600.0,108590.0,0.14391176]
[1749566645028,0.82906778,108600.0,108590.0,0.15249314]
[1749566645250,0.19337007,108600.0,108590.0,0.15249314]
[1749566645461,0.19337007,108600.0,108590.0,0.15248049]
[1749566645676,0.19337007,108600.0,108590.0,0.2024806]
[1749566646363,0.19337007,108600.0,108590.0,0.21702145]
[1749566646573,0.19337007,108600.0,108590.0,0.20844572]
[1749566646791,0.19337007,108600.0,108590.0,0.20844817]
[1749566647019,0.19337007,108600.0,108590.0,0.27254956]
[1749566647231,0.19337007,108600.0,108590.0,0.23592019]
[1749566648108,0.19337007,108600.0,108590.0,0.27254956]
[1749566648581,0.19337007,108600.0,108590.0,0.2359198]
[1749566648788,0.19337007,108600.0,108590.0,0.21876627]
[1749566649241,0.19337007,108600.0,108590.0,0.47253981]
[1749566649464,0.19337007,108600.0,108590.0,1.13571885]
[1749566649701,0.19337007,108600.0,108590.0,0.46339177]
[1749566649921,0.20257783,108600.0,108590.0,0.46338743]
[1749566650130,0.20257783,108600.0,108590.0,1.43908524]
[1749566650364,0.20257783,108600.0,108590.0,1.43904626]
[1749566650796,0.20257783,108600.0,108590.0,1.38414119]
[1749566651010,0.20257783,108600.0,108590.0,1.43902882]
[1749566651243,0.20257783,108600.0,108590.0,0.74843749]
[1749566651474,0.20257783,108600.0,108590.0,0.74943749]
[1749566651700,0.20257783,108600.0,108590.0,0.7871795]
[1749566651928,0.20257783,108600.0,108590.0,1.7346207]
[1749566652173,0.20257783,108600.0,108590.0,1.71747721]
[1749566652398,0.20257783,108600.0,108590.0,1.0817795]
[1749566652623,0.20257783,108600.0,108590.0,0.8430995]
[1749566653508,0.21178593,108600.0,108590.0,0.8430995]
[1749566653949,0.20257783,108600.0,108590.0,0.8430995]
[1749566654187,0.20257783,108600.0,108590.0,0.7417795]
[1749566654408,0.20257783,108600.0,108590.0,0.67967935]
[1749566654598,0.20257783,108600.0,108590.0,0.6430995]
[1749566654838,0.20257783,108600.0,108590.0,0.9830995]
[1749566655707,0.20257783,108600.0,108590.0,0.5417795]
[1749566656043,0.20257783,108600.0,108590.0,0.57836913]
[1749566656146,0.20257783,108600.0,108590.0,0.62476388]
[1749566656384,0.20257783,108600.0,108590.0,0.57836913]
[1749566656602,0.20257783,108600.0,108590.0,0.52348388]
[1749566656838,0.20257783,108600.0,108590.0,0.65221265]
[1749566657103,0.20257783,108600.0,108590.0,0.99221265]
[1749566657376,0.20257783,108600.0,108590.0,0.65221787]
[1749566657593,0.20257783,108600.0,108590.0,0.55093787]
[1749566657826,0.20257783,108600.0,108590.0,0.49980739]
[1749566658054,0.20257783,108600.0,108590.0,0.60108739]
[1749566658278,0.83827554,108600.0,108590.0,0.4409534]
[1749566658956,0.20257783,108600.0,108590.0,0.46453924]
[1749566659174,0.20257783,108600.0,108590.0,0.4710534]
[1749566659853,0.20257783,108600.0,108590.0,0.51304824]
[1749566660073,0.20257783,108600.0,108590.0,0.54963787]
[1749566660283,0.20257783,108600.0,108590.0,0.51818388]
[1749566660515,0.20257783,108600.0,108590.0,0.52018388]
[1749566661391,0.20257783,108600.0,108590.0,0.57506913]
[1749566661821,0.20257783,108600.0,108590.0,0.5384795]
[1749566662504,0.19336999,108600.0,108590.0,0.5384795]
[1749566662725,0.19336999,108600.0,108590.0,0.57514264]
[1749566662951,0.19336999,108600.0,108590.0,0.5384795]
[1749566664135,0.19336999,108600.0,108590.0,0.67639209]
[1749566664351,0.19336999,108600.0,108590.0,0.57415209]
[1749566664566,0.19336999,108600.0,108590.0,0.67539209]
[1749566665023,0.19336999,108600.0,108590.0,0.57415209]
[1749566665251,0.8290677,108600.0,108590.0,0.57586599]
[1749566665682,0.19336999,108600.0,108590.0,0.50214641]
[1749566665923,0.19336999,108600.0,108590.0,0.47462599]
[1749566666549,0.8290677,108600.0,108590.0,0.50215548]
[1749566666768,0.8290677,108600.0,108590.0,0.38273415]
[1749566666980,0.8290677,108600.0,108590.0,0.38273417]
[1749566667217,0.8443677,108600.0,108590.0,0.38273417]
[1749566667461,0.8443677,108600.0,108590.0,0.38273246]
[1749566667677,0.8443677,108600.0,108590.0,0.38273245]
[1749566668108,0.8443677,108600.0,108590.0,0.38273246]
[1749566668324,0.19336999,108600.0,108590.0,0.38273246]
[1749566668542,0.29460999,108600.0,108590.0,0.38273246]
[1749566668776,0.19336999,108600.0,108590.0,0.38273246]
[1749566669199,0.19336999,108600.0,108590.0,0.39803506]
[1749566669428,0.19336999,108600.0,108590.0,0.51745548]
[1749566669640,0.19336999,108600.0,108590.0,0.22285548]
[1749566672108,0.19336999,108600.0,108590.0,0.17088289]
[1749566673458,0.19336999,108600.0,108590.0,0.17948696]
[1749566673679,0.19336999,108600.0,108590.0,0.19528696]
[1749566674127,0.19336999,108600.0,108590.0,0.19528674]
[1749566674344,0.19336999,108600.0,108590.0,0.19528673]
[1749566674760,0.19336999,108600.0,108590.0,0.18668289]
[1749566675428,0.19336999,108600.0,108590.0,0.19528673]
[1749566675833,0.19336999,108600.0,108590.0,0.17948671]
[1749566676056,0.19336999,108600.0,108590.0,0.17088289]
[1749566676262,0.19336999,108600.0,108590.0,0.17948619]
[1749566676896,0.19336999,108600.0,108590.0,0.17088289]
[1749566677119,0.19336999,108600.0,108590.0,0.1794862]
[1749566677578,0.8290677,108600.0,108590.0,0.19669262]
[1749566677805,0.8290677,108600.0,108590.0,0.19668988]
[1749566678024,0.8290677,108600.0,108590.0,0.19668851]
[1749566678466,0.8447677,108600.0,108590.0,0.09673344]
[1749566678704,0.9522211,108600.0,108590.0,0.07780608]
[1749566678926,0.8608677,108600.0,108590.0,0.07780608]
[1749566679204,0.8608677,108600.0,108590.0,0.07780676]
[1749566679421,0.8608677,108600.0,108590.0,0.07780598]
[1749566679637,0.8608677,108600.0,108590.0,0.07580549]
[1749566679861,0.8608677,108600.0,108590.0,0.07580195]
[1749566680057,0.9522211,108600.0,108590.0,0.051]
[1749566680314,1.58791881,108600.0,108590.0,0.051]
[1749566680541,1.92791881,108600.0,108590.0,0.051]
[1749566680780,1.92791881,108600.0,108590.0,0.05960067]
[1749566681472,1.93735787,108600.0,108590.0,0.05960067]
[1749566681735,1.93735787,108600.0,108590.0,0.05860083]
[1749566682169,2.02871127,108600.0,108590.0,0.05860083]
[1749566682625,2.02871127,108600.0,108590.0,0.05860559]
[1749566682848,2.02871127,108600.0,108590.0,0.05860561]
[1749566683103,2.03071127,108600.0,108590.0,0.05]
[1749566683322,0.75931585,108600.0,108590.0,0.05]
[1749566683562,2.03071127,108600.0,108590.0,0.05]
[1749566683991,2.16051127,108600.0,108590.0,0.05]
[1749566686954,2.03071127,108600.0,108590.0,0.05]
[1749566687178,0.88915585,108600.0,108590.0,0.05]
[1749566687391,2.16055127,108600.0,108590.0,0.05]
[1749566687603,1.52485356,108600.0,108590.0,0.05]
[1749566687820,0.75931585,108600.0,108590.0,0.05]
[1749566688046,0.55106999,108600.0,108590.0,0.05859055]
[1749566688290,0.29652999,108600.0,108590.0,0.0665]
[1749566688500,0.9609077,108600.0,108590.0,0.0757683]
[1749566688716,0.9930077,108600.0,108590.0,0.07576857]
[1749566688974,1.4243611,108600.0,108590.0,0.05858969]
[1749566689803,1.4243611,108600.0,108590.0,0.05859038]
[1749566690005,1.4243611,108600.0,108590.0,0.05]
[1749566690224,1.4243611,108600.0,108590.0,0.05859039]
[1749566690661,1.4243611,108600.0,108590.0,0.05859036]
[1749566690896,0.77306339,108600.0,108590.0,0.05859036]
[1749566691130,0.77306339,108600.0,108590.0,0.05]
[1749566691131,1.4087611,108600.0,108590.0,0.05]
[1749566691369,1.3922611,108600.0,108590.0,0.05859175]
[1749566691601,1.3922611,108600.0,108590.0,0.0585915]
[1749566691803,0.5333878,108590.0,108580.0,0.1253914]
[1749566692018,0.5333878,108590.0,108580.0,0.15117646]
[1749566692019,1.16908551,108590.0,108580.0,0.15117646]